fUST/lending_fUST_20250628
["ID","MTS","AMOUNT","RATE_DAILY","PERIOD"]
[368215985,1751063441861,-460.0,0.00019178,2]
[368215986,1751063441872,-460.0,0.00019178,2]
[368215987,1751063441882,-460.0,0.00019178,2]
[368215988,1751063441891,-460.0,0.00019178,2]
[368215990,1751063441900,-350.0,0.00019178,2]
[368215991,1751063441910,-984.99,0.00019178,2]
[368215993,1751063441919,-1354.55,0.00019178,2]
[368215996,1751063441929,-256.53621236,0.00019178,2]
[368215998,1751063441938,-725.03,0.00019178,2]
[368215999,1751063441947,-460.0,0.00019178,2]
[368216002,1751063441957,-460.0,0.00019178,2]
[368216003,1751063441966,-460.0,0.00019178,2]
[368216006,1751063441975,-460.0,0.00019178,2]
[368216008,1751063441985,-859.5,0.00019178,2]
[368216010,1751063441995,-1500.41,0.00019178,2]
[368216012,1751063442004,-460.0,0.00019178,2]
[368216014,1751063442014,-460.0,0.00019178,2]
[368216015,1751063442023,-460.0,0.00019178,2]
[368216017,1751063442032,-736.55,0.00019178,2]
[368216020,1751063442042,-460.0,0.00019178,2]
[368216022,1751063442051,-735.38,0.00019178,2]
[368216024,1751063442060,-4367.09,0.00019178,2]
[368216025,1751063442069,-460.0,0.00019178,2]
[368216028,1751063442080,-460.0,0.00019178,2]
[368216030,1751063442089,-549.15508703,0.00019178,2]
[368216032,1751063442098,-460.0,0.00019178,2]
[368216034,1751063442107,-460.0,0.00019178,2]
[368216035,1751063442116,-460.0,0.00019178,2]
[368216037,1751063442125,-460.0,0.00019178,2]
[368216040,1751063442135,-460.0,0.00019178,2]
[368216042,1751063442144,-463.45030882,0.00019178,2]
[368216044,1751063442154,-2800.66,0.00019178,2]
[368216046,1751063442163,-510.36,0.00019178,2]
[368216047,1751063442173,-557.48,0.00019178,2]
[368216050,1751063442182,-460.0,0.00019178,2]
[368216052,1751063442191,-826.51,0.00019178,2]
[368216053,1751063442201,-460.0,0.00019178,2]
[368216055,1751063442210,-679.09,0.00019178,2]
[368216058,1751063442219,-460.0,0.00019178,2]
[368216059,1751063442228,-460.0,0.00019178,2]
[368216061,1751063442238,-4896.92,0.00019178,2]
[368216063,1751063442247,-844.85,0.00019178,2]
[368216065,1751063442256,-3300.26,0.00019178,2]
[368216067,1751063442266,-1118.35,0.00019178,2]
[368216069,1751063442277,-348.98118321,0.00019178,2]
[368216072,1751063442288,-1870.57,0.00019178,2]
[368216073,1751063442297,-460.0,0.00019178,2]
[368216076,1751063442307,-460.0,0.00019178,2]
[368216077,1751063442317,-460.0,0.00019178,2]
[368216080,1751063442327,-1873.1,0.00019178,2]
[368216081,1751063442337,-460.0,0.00019178,2]
[368216083,1751063442346,-460.0,0.00019178,2]
[368216085,1751063442355,-460.0,0.00019178,2]
[368216087,1751063442364,-460.0,0.00019178,2]
[368216089,1751063442373,-460.0,0.00019178,2]
[368216092,1751063442383,-460.0,0.00019178,2]
[368216094,1751063442392,-460.0,0.00019178,2]
[368216095,1751063442401,-460.0,0.00019178,2]
[368216097,1751063442410,-460.0,0.00019178,2]
[368216099,1751063442419,-460.0,0.00019178,2]
[368216101,1751063442428,-460.0,0.00019178,2]
[368216103,1751063442437,-460.0,0.00019178,2]
[368216105,1751063442446,-460.0,0.00019178,2]
[368216107,1751063442457,-460.0,0.00019178,2]
[368216109,1751063442466,-460.0,0.00019178,2]
[368216111,1751063442475,-460.0,0.00019178,2]
[368216113,1751063442484,-680.86,0.00019178,2]
[368216115,1751063442494,-4363.55,0.00019178,2]
[368216117,1751063442503,-221.492459,0.00019178,10]
[368216119,1751063442512,-1345.05,0.00019178,2]
[368216121,1751063442521,-460.0,0.00019178,2]
[368216124,1751063442532,-460.0,0.00019178,2]
[368216126,1751063442541,-323.75783934,0.00019178,2]
[368216128,1751063442551,-3792.71,0.00019178,2]
[368216130,1751063442560,-460.0,0.00019178,2]
[368216131,1751063442569,-500.0,0.00019178,2]
[368216133,1751063442578,-460.0,0.00019178,2]
[368216135,1751063442587,-629.7,0.00019178,2]
[368216138,1751063442598,-460.0,0.00019178,2]
[368216140,1751063442607,-460.0,0.00019178,2]
[368216141,1751063442617,-439.38909669,0.00019178,2]
[368216143,1751063442626,-767.94,0.00019178,2]
[368216145,1751063442635,-3690.28,0.00019178,2]
[368216147,1751063442644,-407.1027472,0.00019178,2]
[368216149,1751063442653,-175.182416,0.00019178,2]
[368216151,1751063442663,-460.0,0.00019452,2]
[368216154,1751063442674,-460.0,0.00019452,2]
[368216155,1751063442683,-460.0,0.00019452,2]
[368216157,1751063442693,-460.0,0.00019452,2]
[368216160,1751063442702,-460.0,0.00019452,2]
[368216162,1751063442714,-460.0,0.00019452,2]
[368216163,1751063442723,-460.0,0.00019452,2]
[368216165,1751063442732,-320.3281074,0.00019452,2]
[368216167,1751063442741,-460.0,0.00019452,2]
[368216169,1751063442750,-343.99708836,0.00019452,2]
[368216171,1751063442761,-460.0,0.00019452,2]
[368216173,1751063442770,-460.0,0.00019452,2]
[368216175,1751063442779,-460.0,0.00019452,2]
[368216177,1751063442791,-460.0,0.00019452,2]
[368216179,1751063442801,-460.0,0.00019452,2]
[368216182,1751063442810,-460.0,0.00019452,2]
[368216183,1751063442820,-460.0,0.00019452,2]
[368216185,1751063442829,-460.0,0.00019452,2]
[368216188,1751063442840,-460.0,0.00019452,2]
[368216189,1751063442850,-471.98705521,0.00019452,2]
[368216191,1751063442860,-460.0,0.00019452,2]
[368216194,1751063442870,-460.0,0.00019452,2]
[368216195,1751063442880,-460.0,0.00019452,2]
[368216197,1751063442889,-460.0,0.00019452,2]
[368216199,1751063442898,-410.0,0.00019452,2]
[368216201,1751063442908,-330.22140276,0.00019452,2]
[368216203,1751063442917,-460.0,0.00019452,2]
[368216205,1751063442926,-460.0,0.00019452,2]
[368216207,1751063442936,-460.0,0.00019452,2]
[368216209,1751063442945,-255.30595051,0.00019452,2]
[368216211,1751063442954,-460.0,0.00019452,2]
[368216213,1751063442964,-460.0,0.00019452,2]
[368216215,1751063442973,-460.0,0.00019452,2]
[368216217,1751063442984,-460.0,0.00019452,2]
[368216219,1751063442993,-460.0,0.00019452,2]
[368216221,1751063443003,-460.0,0.00019452,2]
[368216223,1751063443012,-460.0,0.00019452,2]
[368216225,1751063443021,-460.0,0.00019452,2]
[368216227,1751063443030,-460.0,0.00019452,2]
[368216229,1751063443039,-460.0,0.00019452,2]
[368216231,1751063443049,-152.25916795,0.00019452,2]
[368216233,1751063443058,-607.35,0.00019452,2]
[368216235,1751063443067,-460.0,0.00019452,2]
[368216237,1751063443076,-460.0,0.00019452,2]
[368216239,1751063443086,-460.0,0.00019452,2]
[368216241,1751063443096,-999.05,0.00019452,2]
[368216244,1751063443105,-460.0,0.00019452,2]
[368216246,1751063443115,-460.0,0.00019452,2]
[368216248,1751063443124,-460.0,0.00019452,2]
[368216250,1751063443133,-460.0,0.00019452,2]
[368216252,1751063443142,-291.27438412,0.00019452,2]
[368216254,1751063443151,-460.0,0.00019452,2]
[368216256,1751063443161,-460.0,0.00019452,2]
[368216258,1751063443170,-460.0,0.00019452,2]
[368216260,1751063443179,-460.0,0.00019452,2]
[368216263,1751063443188,-460.0,0.00019452,2]
[368216265,1751063443198,-460.0,0.00019452,2]
[368216267,1751063443207,-460.0,0.00019452,2]
[368216269,1751063443217,-460.0,0.00019452,2]
[368216271,1751063443226,-460.0,0.00019452,2]
[368216273,1751063443235,-460.0,0.00019452,2]
[368216275,1751063443245,-460.0,0.00019452,2]
[368216277,1751063443254,-460.0,0.00019452,2]
[368216279,1751063443263,-460.0,0.00019452,2]
[368216281,1751063443273,-460.0,0.00019452,2]
[368216283,1751063443282,-428.21,0.00019452,2]
[368216286,1751063443292,-460.0,0.00019452,2]
[368216288,1751063443301,-460.0,0.00019452,2]
[368216290,1751063443310,-460.0,0.00019452,2]
[368216292,1751063443320,-460.0,0.00019452,2]
[368216294,1751063443329,-460.0,0.00019452,2]
[368216297,1751063443339,-460.0,0.00019452,2]
[368216299,1751063443348,-460.0,0.00019452,2]
[368216302,1751063443357,-460.0,0.00019452,2]
[368216304,1751063443366,-900.26,0.00019452,2]
[368216306,1751063443375,-460.0,0.00019452,2]
[368216308,1751063443384,-460.0,0.00019452,2]
[368216310,1751063443393,-460.0,0.00019452,2]
[368216311,1751063443402,-460.0,0.00019452,2]
[368216313,1751063443412,-460.0,0.00019452,2]
[368216315,1751063443421,-462.32889368,0.00019452,2]
[368216317,1751063443430,-460.0,0.00019452,2]
[368216319,1751063443439,-460.0,0.00019452,2]
[368216320,1751063443449,-460.0,0.00019452,2]
[368216322,1751063443458,-460.0,0.00019452,2]
[368216324,1751063443467,-460.0,0.00019452,2]
[368216326,1751063443476,-460.0,0.00019452,2]
[368216328,1751063443485,-460.0,0.00019452,2]
[368216330,1751063443494,-460.0,0.00019452,2]
[368216332,1751063443503,-460.0,0.00019452,2]
[368216334,1751063443512,-460.0,0.00019452,2]
[368216336,1751063443521,-460.0,0.00019452,2]
[368216338,1751063443532,-460.0,0.00019452,2]
[368216340,1751063443542,-460.0,0.00019452,2]
[368216342,1751063443552,-460.0,0.00019452,2]
[368216344,1751063443561,-460.0,0.00019452,2]
[368216346,1751063443571,-460.0,0.00019452,2]
[368216348,1751063443580,-460.0,0.00019452,2]
[368216350,1751063443589,-460.0,0.00019452,2]
[368216352,1751063443598,-553.24,0.00019452,2]
[368216354,1751063443607,-460.0,0.00019452,2]
[368216356,1751063443617,-460.0,0.00019452,2]
[368216358,1751063443626,-540.41,0.00019452,2]
[368216360,1751063443635,-460.0,0.00019452,2]
[368216362,1751063443644,-460.0,0.00019452,2]
[368216364,1751063443654,-460.0,0.00019452,2]
[368216366,1751063443664,-460.0,0.00019452,2]
[368216368,1751063443674,-460.0,0.00019452,2]
[368216370,1751063443684,-460.0,0.00019452,2]
[368216372,1751063443693,-460.0,0.00019452,2]
[368216374,1751063443702,-460.0,0.00019452,2]
[368216376,1751063443711,-460.0,0.00019452,2]
[368216378,1751063443720,-460.0,0.00019452,2]
[368216380,1751063443732,-460.0,0.00019452,2]
[368216382,1751063443741,-460.0,0.00019452,2]
[368216384,1751063443750,-460.0,0.00019452,2]
[368216386,1751063443759,-460.0,0.00019452,2]
[368216388,1751063443769,-460.0,0.00019452,2]
[368216390,1751063443778,-460.0,0.00019452,2]
[368216392,1751063443787,-460.0,0.00019452,2]
[368216394,1751063443797,-460.0,0.00019452,2]
[368216397,1751063443806,-460.0,0.00019452,2]
[368216399,1751063443815,-460.0,0.00019452,2]
[368216401,1751063443825,-460.0,0.00019452,2]
[368216403,1751063443834,-460.0,0.00019452,2]
[368216405,1751063443843,-871.69,0.00019452,2]
[368216407,1751063443852,-460.0,0.00019452,2]
[368216409,1751063443862,-503.7,0.00019452,2]
[368216412,1751063443871,-714.05,0.00019452,2]
[368216415,1751063443881,-868.19,0.00019452,2]
[368216417,1751063443891,-460.0,0.00019452,2]
[368216419,1751063443900,-1111.27,0.00019452,2]
[368216421,1751063443909,-460.0,0.00019452,2]
[368216423,1751063443919,-460.0,0.00019452,2]
[368216425,1751063443928,-653.02,0.00019452,2]
[368216427,1751063443937,-828.56,0.00019452,2]
[368216429,1751063443947,-460.0,0.00019452,2]
[368216431,1751063443956,-627.83,0.00019452,2]
[368216433,1751063443965,-462.69158793,0.00019452,2]
[368216435,1751063443974,-1734.59,0.00019452,2]
[368216437,1751063443983,-460.0,0.00019452,2]
[368216439,1751063443993,-460.0,0.00019452,2]
[368216441,1751063444002,-674.57,0.00019452,2]
[368216443,1751063444011,-460.0,0.00019452,2]
[368216445,1751063444021,-673.33,0.00019452,2]
[368216447,1751063444030,-460.0,0.00019452,2]
[368216450,1751063444040,-3325.53,0.00019452,2]
[368216452,1751063444049,-2036.27,0.00019452,2]
[368216454,1751063444058,-3039.98,0.00019452,2]
[368216456,1751063444067,-460.0,0.00019452,2]
[368216458,1751063444076,-460.0,0.00019452,2]
[368216460,1751063444086,-746.56,0.00019452,2]
[368216462,1751063444096,-3571.78,0.00019452,2]
[368216464,1751063444105,-711.12,0.00019452,2]
[368216466,1751063444114,-460.0,0.00019452,2]
[368216468,1751063444123,-460.0,0.00019452,2]
[368216470,1751063444132,-542.69,0.00019452,2]
[368216472,1751063444141,-460.0,0.00019452,2]
[368216474,1751063444150,-460.0,0.00019452,2]
[368216476,1751063444160,-746.6,0.00019452,2]
[368216478,1751063444169,-460.0,0.00019452,2]
[368216480,1751063444179,-460.0,0.00019452,2]
[368216483,1751063444188,-1211.5,0.00019452,2]
[368216485,1751063444198,-460.0,0.00019452,2]
[368216487,1751063444207,-460.0,0.00019452,2]
[368216488,1751063444217,-460.0,0.00019452,2]
[368216491,1751063444226,-401.29482588,0.00019452,2]
[368216493,1751063444236,-460.0,0.00019452,2]
[368216494,1751063444246,-1983.87,0.00019452,2]
[368216496,1751063444255,-460.0,0.00019452,2]
[368216499,1751063444265,-2057.65,0.00019452,2]
[368216501,1751063444275,-460.0,0.00019452,2]
[368216502,1751063444284,-592.7,0.00019452,2]
[368216505,1751063444294,-2270.27,0.00019452,2]
[368216507,1751063444303,-460.0,0.00019452,2]
[368216508,1751063444313,-460.0,0.00019452,2]
[368216511,1751063444325,-984.99,0.00019452,2]
[368216512,1751063444334,-1354.55,0.00019452,2]
[368216515,1751063444344,-725.03,0.00019452,2]
[368216517,1751063444354,-460.0,0.00019452,2]
[368216519,1751063444363,-460.0,0.00019452,2]
[368216521,1751063444372,-460.0,0.00019452,2]
[368216523,1751063444382,-859.5,0.00019452,2]
[368216525,1751063444391,-1500.41,0.00019452,2]
[368216527,1751063444401,-460.0,0.00019452,2]
[368216528,1751063444410,-460.0,0.00019452,2]
[368216530,1751063444419,-460.0,0.00019452,2]
[368216533,1751063444429,-736.55,0.00019452,2]
[368216535,1751063444439,-735.38,0.00019452,2]
[368216537,1751063444449,-4367.09,0.00019452,2]
[368216539,1751063444458,-460.0,0.00019452,2]
[368216541,1751063444468,-460.0,0.00019452,2]
[368216543,1751063444478,-460.0,0.00019452,2]
[368216545,1751063444487,-460.0,0.00019452,2]
[368216546,1751063444497,-2800.66,0.00019452,2]
[368216549,1751063444506,-510.36,0.00019452,2]
[368216551,1751063444516,-557.48,0.00019452,2]
[368216553,1751063444527,-826.51,0.00019452,2]
[368216554,1751063444536,-460.0,0.00019452,2]
[368216557,1751063444546,-679.09,0.00019452,2]
[368216559,1751063444555,-460.0,0.00019452,2]
[368216574,1751063444564,-4896.92,0.00019452,2]
[368216577,1751063444707,-844.85,0.00019452,2]
[368216579,1751063444719,-3300.26,0.00019452,2]
[368216581,1751063444729,-1118.35,0.00019452,2]
[368216583,1751063444739,-1870.57,0.00019452,2]
[368216585,1751063444748,-411.7414348,0.00019452,2]
[368216587,1751063444758,-460.0,0.00019452,2]
[368216589,1751063444768,-1873.1,0.00019452,2]
[368216591,1751063444777,-460.0,0.00019452,2]
[368216593,1751063444787,-460.0,0.00019452,2]
[368216595,1751063444798,-460.0,0.00019452,2]
[368216597,1751063444808,-460.0,0.00019452,2]
[368216599,1751063444817,-460.0,0.00019452,2]
[368216601,1751063444826,-460.0,0.00019452,2]
[368216603,1751063444835,-186.96,0.00019452,2]
[368216605,1751063444845,-460.0,0.00019452,2]
[368216607,1751063444854,-460.0,0.00019452,2]
[368216609,1751063444863,-460.0,0.00019452,2]
[368216611,1751063444872,-680.86,0.00019452,2]
[368216613,1751063444881,-4363.55,0.00019452,2]
[368216615,1751063444891,-1345.05,0.00019452,2]
[368216617,1751063444900,-460.0,0.00019452,2]
[368216619,1751063444910,-3792.71,0.00019452,2]
[368216621,1751063444919,-429.88324504,0.00019452,2]
[368216623,1751063444928,-460.0,0.00019452,2]
[368216624,1751063444937,-629.7,0.00019452,2]
[368216627,1751063444946,-454.44005106,0.00019452,2]
[368216629,1751063444955,-588.09361166,0.00019452,2]
[368216631,1751063444964,-767.94,0.00019452,2]
[368216633,1751063444973,-500.0,0.00019638,2]
[368216635,1751063444983,-500.0,0.00019638,2]
[368216637,1751063444992,-500.0,0.00019677,2]
[368216638,1751063445001,-458.91259767,0.00019677,2]
[368216640,1751063445010,-500.0,0.00019684,2]
[368216643,1751063445020,-500.0,0.00019684,2]
[368216645,1751063445029,-741.01909549,0.00019694,2]
[368216646,1751063445038,-500.0,0.00019719,2]
[368216648,1751063445048,-500.0,0.00019719,2]
[368216650,1751063445057,-500.0,0.00019719,2]
[368216652,1751063445066,-980.65187058,0.00019721,2]
[368216655,1751063445076,-500.0,0.00019721,2]
[368216657,1751063445086,-1000.0,0.00019721,2]
[368216659,1751063445095,-500.0,0.00019721,2]
[368216660,1751063445105,-500.0,0.00019721,2]
[368216662,1751063445115,-823.80255647,0.00019721,2]
[368216664,1751063445124,-500.0,0.00019721,2]
[368216667,1751063445134,-500.0,0.00019721,2]
[368216669,1751063445143,-500.0,0.00019721,2]
[368216671,1751063445152,-1000.0,0.00019721,2]
[368216673,1751063445161,-460.0,0.00019726,2]
[368216675,1751063445170,-460.0,0.00019726,2]
[368216677,1751063445180,-460.0,0.00019726,2]
[368216678,1751063445189,-460.0,0.00019726,2]
[368216681,1751063445198,-460.0,0.00019726,2]
[368216683,1751063445207,-460.0,0.00019726,2]
[368216684,1751063445216,-460.0,0.00019726,2]
[368216686,1751063445225,-314.14561234,0.00019726,2]
[368216688,1751063445235,-460.0,0.00019726,2]
[368216690,1751063445244,-460.0,0.00019726,2]
[368216692,1751063445253,-460.0,0.00019726,2]
[368216694,1751063445262,-460.0,0.00019726,2]
[368216696,1751063445272,-298.57962969,0.00019726,2]
[368216698,1751063445281,-460.0,0.00019726,2]
[368216699,1751063445290,-254.26203425,0.00019726,2]
[368216701,1751063445299,-460.0,0.00019726,2]
[368216703,1751063445309,-460.0,0.00019726,2]
[368216705,1751063445318,-460.0,0.00019726,2]
[368216707,1751063445328,-460.0,0.00019726,2]
[368216709,1751063445337,-460.0,0.00019726,2]
[368216711,1751063445346,-460.0,0.00019726,2]
[368216712,1751063445355,-460.0,0.00019726,2]
[368216714,1751063445364,-460.0,0.00019726,2]
[368216716,1751063445373,-460.0,0.00019726,2]
[368216718,1751063445382,-460.0,0.00019726,2]
[368216720,1751063445391,-460.0,0.00019726,2]
[368216722,1751063445400,-460.0,0.00019726,2]
[368216723,1751063445410,-607.35,0.00019726,2]
[368216724,1751063445419,-460.0,0.00019726,2]
[368216725,1751063445428,-999.05,0.00019726,2]
[368216727,1751063445437,-460.0,0.00019726,2]
[368216729,1751063445447,-460.0,0.00019726,2]
[368216731,1751063445456,-460.0,0.00019726,2]
[368216733,1751063445466,-460.0,0.00019726,2]
[368216735,1751063445475,-460.0,0.00019726,2]
[368216737,1751063445484,-460.0,0.00019726,2]
[368216739,1751063445493,-460.0,0.00019726,2]
[368216741,1751063445502,-460.0,0.00019726,2]
[368216743,1751063445511,-460.0,0.00019726,2]
[368216745,1751063445521,-460.0,0.00019726,2]
[368216746,1751063445532,-460.0,0.00019726,2]
[368216747,1751063445541,-460.0,0.00019726,2]
[368216748,1751063445551,-460.0,0.00019726,2]
[368216749,1751063445560,-460.0,0.00019726,2]
[368216750,1751063445569,-460.0,0.00019726,2]
[368216751,1751063445578,-460.0,0.00019726,2]
[368216752,1751063445588,-900.26,0.00019726,2]
[368216753,1751063445597,-266.03177238,0.00019726,2]
[368216754,1751063445607,-460.0,0.00019726,2]
[368216755,1751063445616,-460.0,0.00019726,2]
[368216756,1751063445625,-460.0,0.00019726,2]
[368216757,1751063445635,-460.0,0.00019726,2]
[368216758,1751063445644,-460.0,0.00019726,2]
[368216759,1751063445654,-460.0,0.00019726,2]
[368216760,1751063445663,-460.0,0.00019726,2]
[368216761,1751063445672,-460.0,0.00019726,2]
[368216762,1751063445681,-460.0,0.00019726,2]
[368216763,1751063445690,-460.0,0.00019726,2]
[368216765,1751063445700,-460.0,0.00019726,2]
[368216767,1751063445709,-460.0,0.00019726,2]
[368216769,1751063445722,-460.0,0.00019726,2]
[368216771,1751063445731,-460.0,0.00019726,2]
[368216773,1751063445740,-460.0,0.00019726,2]
[368216775,1751063445750,-460.0,0.00019726,2]
[368216777,1751063445759,-460.0,0.00019726,2]
[368216779,1751063445769,-540.41,0.00019726,2]
[368216781,1751063445778,-460.0,0.00019726,2]
[368216783,1751063445787,-460.0,0.00019726,2]
[368216785,1751063445797,-460.0,0.00019726,2]
[368216787,1751063445807,-358.65081265,0.00019726,2]
[368216789,1751063445816,-460.0,0.00019726,2]
[368216791,1751063445826,-460.0,0.00019726,2]
[368216794,1751063445837,-460.0,0.00019726,2]
[368216796,1751063445846,-460.0,0.00019726,2]
[368216798,1751063445857,-460.0,0.00019726,2]
[368216800,1751063445867,-460.0,0.00019726,2]
[368216802,1751063445876,-460.0,0.00019726,2]
[368216804,1751063445886,-269.4,0.00019726,2]
[368216805,1751063445895,-460.0,0.00019726,2]
[368216807,1751063445904,-460.0,0.00019726,2]
[368216809,1751063445914,-871.69,0.00019726,2]
[368216811,1751063445923,-503.7,0.00019726,2]
[368216813,1751063445932,-714.05,0.00019726,2]
[368216816,1751063445942,-868.19,0.00019726,2]
[368216818,1751063445951,-1111.27,0.00019726,2]
[368216819,1751063445960,-460.0,0.00019726,2]
[368216822,1751063445969,-460.0,0.00019726,2]
[368216823,1751063445978,-653.02,0.00019726,2]
[368216826,1751063445988,-828.56,0.00019726,2]
[368216828,1751063445997,-460.0,0.00019726,2]
[368216830,1751063446006,-627.83,0.00019726,2]
[368216831,1751063446017,-1734.59,0.00019726,2]
[368216834,1751063446026,-460.0,0.00019726,2]
[368216836,1751063446037,-674.57,0.00019726,2]
[368216837,1751063446047,-460.0,0.00019726,2]
[368216839,1751063446056,-673.33,0.00019726,2]
[368216841,1751063446065,-460.0,0.00019726,2]
[368216843,1751063446076,-3325.53,0.00019726,2]
[368216846,1751063446085,-2036.27,0.00019726,2]
[368216848,1751063446094,-3039.98,0.00019726,2]
[368216849,1751063446104,-460.0,0.00019726,2]
[368216851,1751063446113,-460.0,0.00019726,2]
[368216854,1751063446122,-746.56,0.00019726,2]
[368216857,1751063446131,-3571.78,0.00019726,2]
[368216859,1751063446140,-711.12,0.00019726,2]
[368216861,1751063446150,-460.0,0.00019726,2]
[368216863,1751063446159,-542.69,0.00019726,2]
[368216865,1751063446169,-460.0,0.00019726,2]
[368216867,1751063446178,-460.0,0.00019726,2]
[368216869,1751063446187,-746.6,0.00019726,2]
[368216871,1751063446196,-1211.5,0.00019726,2]
[368216873,1751063446205,-460.0,0.00019726,2]
[368216875,1751063446214,-460.0,0.00019726,2]
[368216878,1751063446224,-460.0,0.00019726,2]
[368216879,1751063446233,-1983.87,0.00019726,2]
[368216881,1751063446242,-460.0,0.00019726,2]
[368216885,1751063446251,-2057.65,0.00019726,2]
[368216889,1751063446261,-460.0,0.00019726,2]
[368216890,1751063446270,-592.7,0.00019726,2]
[368216892,1751063446280,-2270.27,0.00019726,2]
[368216895,1751063446291,-460.0,0.00019726,2]
[368216896,1751063446300,-460.0,0.00019726,2]
[368216898,1751063446309,-984.99,0.00019726,2]
[368216900,1751063446319,-1354.55,0.00019726,2]
[368216903,1751063446328,-460.0,0.00019726,2]
[368216905,1751063446337,-725.03,0.00019726,2]
[368216906,1751063446347,-460.0,0.00019726,2]
[368216909,1751063446358,-859.5,0.00019726,2]
[368216910,1751063446367,-1500.41,0.00019726,2]
[368216913,1751063446377,-266.59089114,0.00019726,2]
[368216914,1751063446387,-460.0,0.00019726,2]
[368216916,1751063446395,-736.55,0.00019726,2]
[368216918,1751063446404,-735.38,0.00019726,2]
[368216920,1751063446413,-4367.09,0.00019726,2]
[368216922,1751063446422,-460.0,0.00019726,2]
[368216924,1751063446432,-460.0,0.00019726,2]
[368216926,1751063446441,-460.0,0.00019726,2]
[368216928,1751063446450,-460.0,0.00019726,2]
[368216930,1751063446459,-2800.66,0.00019726,2]
[368216932,1751063446468,-510.36,0.00019726,2]
[368216934,1751063446477,-557.48,0.00019726,2]
[368216936,1751063446487,-826.51,0.00019726,2]
[368216938,1751063446496,-460.0,0.00019726,2]
[368216940,1751063446505,-679.09,0.00019726,2]
[368216942,1751063446515,-4896.92,0.00019726,2]
[368216944,1751063446524,-844.85,0.00019726,2]
[368216946,1751063446534,-3300.26,0.00019726,2]
[368216948,1751063446545,-1118.35,0.00019726,2]
[368216950,1751063446554,-1870.57,0.00019726,2]
[368216952,1751063446563,-460.0,0.00019726,2]
[368216954,1751063446573,-1873.1,0.00019726,2]
[368216956,1751063446582,-460.0,0.00019726,2]
[368216958,1751063446591,-460.0,0.00019726,2]
[368216960,1751063446600,-460.0,0.00019726,2]
[368216962,1751063446610,-460.0,0.00019726,2]
[368216964,1751063446619,-460.0,0.00019726,2]
[368216966,1751063446628,-460.0,0.00019726,2]
[368216968,1751063446638,-680.86,0.00019726,2]
[368216970,1751063446647,-4363.55,0.00019726,2]
[368216972,1751063446656,-1345.05,0.00019726,2]
[368216974,1751063446665,-3792.71,0.00019726,2]
[368216976,1751063446674,-264.36283042,0.00019726,2]
[368216978,1751063446683,-629.7,0.00019726,2]
[368216980,1751063446693,-767.94,0.00019726,2]
[368216982,1751063446703,-500.0,0.00019727,2]